[Event "December 19 Early 2023"]
[Site "https://www.chess.com"]
[Date "2023.12.19"]
[Round "7"]
[White "JonaszBaum"]
[Black "Materia, Marco"]
[Result "0-1"]
[Board "30"]
[TimeControl "180+1"]
[BlackFideId "45150451"]
[WhiteElo "2700"]
[BlackElo "2451"]
[BlackTeam "FRA"]
[WhiteClock "0:00:06"]
[BlackClock "0:00:14"]

1. d4 {[%clk 0:03:00]}  Nf6 {[%clk 0:02:59]} 2. Nf3 {[%clk 0:02:59]}  d5 {[%clk 0:02:59]} 3. g3 {[%clk 0:02:58]}  c5 {[%clk 0:02:55]} 4. c4 {[%clk 0:02:57]}  Nc6 {[%clk 0:02:52]} 5. dxc5 {[%clk 0:02:50]}  e6 {[%clk 0:02:41]} 6. cxd5 {[%clk 0:02:48]}  exd5 {[%clk 0:02:41]} 7. Bg2 {[%clk 0:02:44]}  Bxc5 {[%clk 0:02:41]} 8. O-O {[%clk 0:02:44]}  O-O {[%clk 0:02:41]} 9. Bg5 {[%clk 0:02:39]}  h6 {[%clk 0:02:34]} 10. Bxf6 {[%clk 0:02:38]}  Qxf6 {[%clk 0:02:34]} 11. Nc3 {[%clk 0:02:38]}  Rd8 {[%clk 0:02:30]} 12. Rc1 {[%clk 0:02:35]}  Be6 {[%clk 0:02:25]} 13. a3 {[%clk 0:02:18]}  Rac8 {[%clk 0:02:21]} 14. b4 {[%clk 0:02:16]}  Bf8 {[%clk 0:02:19]} 15. Na4 {[%clk 0:02:12]}  d4 {[%clk 0:02:10]} 16. Nc5 {[%clk 0:02:10]}  Bxc5 {[%clk 0:02:10]} 17. Rxc5 {[%clk 0:02:11]}  Bd5 {[%clk 0:01:49]} 18. Qc1 {[%clk 0:02:07]}  d3 {[%clk 0:01:46]} 19. Rd1 {[%clk 0:01:24]}  b6 {[%clk 0:01:13]} 20. Rc3 {[%clk 0:01:16]}  dxe2 {[%clk 0:01:12]} 21. Re1 {[%clk 0:01:08]}  Bxf3 {[%clk 0:00:56]} 22. Bxf3 {[%clk 0:01:00]}  Ne7 {[%clk 0:00:47]} 23. Rxc8 {[%clk 0:00:49]}  Rxc8 {[%clk 0:00:47]} 24. Qf4 {[%clk 0:00:38]}  Qxf4 {[%clk 0:00:46]} 25. gxf4 {[%clk 0:00:39]}  Ng6 {[%clk 0:00:44]} 26. Bxe2 {[%clk 0:00:21]}  Nxf4 {[%clk 0:00:43]} 27. Bf1 {[%clk 0:00:21]}  g5 {[%clk 0:00:42]} 28. Re7 {[%clk 0:00:21]}  a5 {[%clk 0:00:28]} 29. Rb7 {[%clk 0:00:21]}  axb4 {[%clk 0:00:26]} 30. axb4 {[%clk 0:00:21]}  Rc6 {[%clk 0:00:26]} 31. b5 {[%clk 0:00:19]}  Rd6 {[%clk 0:00:27]} 32. h3 {[%clk 0:00:18]}  Kg7 {[%clk 0:00:27]} 33. Kh2 {[%clk 0:00:14]}  Kg6 {[%clk 0:00:27]} 34. Bc4 {[%clk 0:00:14]}  f6 {[%clk 0:00:27]} 35. Kg3 {[%clk 0:00:12]}  h5 {[%clk 0:00:27]} 36. h4 {[%clk 0:00:11]}  Kf5 {[%clk 0:00:14]} 37. f3 {[%clk 0:00:11]}  Rd2 {[%clk 0:00:14]} 38. hxg5 {[%clk 0:00:06]}  Rg2+ {[%clk 0:00:14]} 0-1

[Event "December 19 Early 2023"]
[Site "https://www.chess.com"]
[Date "2023.12.19"]
[Round "7"]
[White "Haug, Havard"]
[Black "Agibileg, Uurtsaikh"]
[Result "0-1"]
[Board "31"]
[TimeControl "180+1"]
[WhiteFideId "1547887"]
[BlackFideId "4901606"]
[WhiteElo "2343"]
[BlackElo "2288"]
[WhiteTeam "NOR"]
[BlackTeam "MGL"]
[WhiteClock "0:00:38"]
[BlackClock "0:00:30"]

1. e4 {[%clk 0:03:00]}  e5 {[%clk 0:02:58]} 2. Nf3 {[%clk 0:02:54]}  Nc6 {[%clk 0:02:58]} 3. Bc4 {[%clk 0:02:55]}  Nf6 {[%clk 0:02:58]} 4. d3 {[%clk 0:02:54]}  h6 {[%clk 0:02:58]} 5. O-O {[%clk 0:02:54]}  g5 {[%clk 0:02:58]} 6. d4 {[%clk 0:02:53]}  d6 {[%clk 0:02:54]} 7. dxe5 {[%clk 0:02:53]}  g4 {[%clk 0:02:48]} 8. exf6 {[%clk 0:02:26]}  gxf3 {[%clk 0:02:49]} 9. Qxf3 {[%clk 0:02:27]}  Ne5 {[%clk 0:02:49]} 10. Qe2 {[%clk 0:02:27]}  Qxf6 {[%clk 0:02:43]} 11. f4 {[%clk 0:02:25]}  Nxc4 {[%clk 0:02:43]} 12. Qxc4 {[%clk 0:02:25]}  Rg8 {[%clk 0:02:43]} 13. Nc3 {[%clk 0:02:22]}  c6 {[%clk 0:02:27]} 14. Rf2 {[%clk 0:02:12]}  Be6 {[%clk 0:02:26]} 15. Qd3 {[%clk 0:02:08]}  O-O-O {[%clk 0:02:23]} 16. Be3 {[%clk 0:02:08]}  Kb8 {[%clk 0:02:10]} 17. Rd1 {[%clk 0:02:04]}  Be7 {[%clk 0:02:04]} 18. f5 {[%clk 0:01:48]}  Bc8 {[%clk 0:02:00]} 19. Bf4 {[%clk 0:01:46]}  h5 {[%clk 0:01:49]} 20. Qe3 {[%clk 0:01:41]}  Ka8 {[%clk 0:01:45]} 21. Rfd2 {[%clk 0:01:40]}  h4 {[%clk 0:01:37]} 22. Qd4 {[%clk 0:01:26]}  Qxd4+ {[%clk 0:01:34]} 23. Rxd4 {[%clk 0:01:27]}  d5 {[%clk 0:01:34]} 24. Kf1 {[%clk 0:01:15]}  Bc5 {[%clk 0:01:34]} 25. R4d2 {[%clk 0:01:06]}  Rg4 {[%clk 0:01:30]} 26. g3 {[%clk 0:01:05]}  Rdg8 {[%clk 0:01:29]} 27. exd5 {[%clk 0:01:03]}  Bxf5 {[%clk 0:01:14]} 28. dxc6 {[%clk 0:01:01]}  bxc6 {[%clk 0:00:54]} 29. Rd8+ {[%clk 0:01:01]}  Kb7 {[%clk 0:00:55]} 30. Na4 {[%clk 0:00:58]}  Rxf4+ {[%clk 0:00:36]} 31. Ke1 {[%clk 0:00:39]}  Re4+ {[%clk 0:00:29]} 32. Kf1 {[%clk 0:00:38]}  Bh3# {[%clk 0:00:30]} 0-1

[Event "December 19 Early 2023"]
[Site "https://www.chess.com"]
[Date "2023.12.19"]
[Round "7"]
[White "Aaditya Dhingra"]
[Black "Pranav, V"]
[Result "0-1"]
[Board "35"]
[TimeControl "180+1"]
[WhiteFideId "25678191"]
[BlackFideId "25060783"]
[WhiteElo "2269"]
[BlackElo "2562"]
[WhiteTeam "IND"]
[BlackTeam "IND"]
[WhiteClock "0:01:14"]
[BlackClock "0:01:41"]

1. Nf3 {[%clk 0:03:00]}  d5 {[%clk 0:02:59]} 2. c4 {[%clk 0:03:00]}  d4 {[%clk 0:02:59]} 3. b4 {[%clk 0:02:59]}  f6 {[%clk 0:02:59]} 4. d3 {[%clk 0:02:51]}  e5 {[%clk 0:02:58]} 5. a3 {[%clk 0:02:48]}  a5 {[%clk 0:02:57]} 6. b5 {[%clk 0:02:48]}  Nd7 {[%clk 0:02:55]} 7. g3 {[%clk 0:02:48]}  Nc5 {[%clk 0:02:55]} 8. Bg2 {[%clk 0:02:48]}  Bd6 {[%clk 0:02:54]} 9. a4 {[%clk 0:02:48]}  Ne7 {[%clk 0:02:54]} 10. O-O {[%clk 0:02:48]}  O-O {[%clk 0:02:54]} 11. Nbd2 {[%clk 0:02:45]}  c6 {[%clk 0:02:52]} 12. Ba3 {[%clk 0:02:44]}  Be6 {[%clk 0:02:49]} 13. Qc2 {[%clk 0:02:30]}  Rc8 {[%clk 0:02:46]} 14. Rfb1 {[%clk 0:02:29]}  b6 {[%clk 0:02:21]} 15. Ne1 {[%clk 0:02:08]}  cxb5 {[%clk 0:02:18]} 16. axb5 {[%clk 0:02:08]}  f5 {[%clk 0:02:15]} 17. Bxc5 {[%clk 0:02:02]}  Bxc5 {[%clk 0:02:13]} 18. Nef3 {[%clk 0:01:59]}  Ng6 {[%clk 0:02:12]} 19. h4 {[%clk 0:01:54]}  Qf6 {[%clk 0:01:58]} 20. Ng5 {[%clk 0:01:52]}  Ne7 {[%clk 0:01:58]} 21. Nxe6 {[%clk 0:01:49]}  Qxe6 {[%clk 0:01:58]} 22. Ra4 {[%clk 0:01:34]}  Kh8 {[%clk 0:01:57]} 23. Nb3 {[%clk 0:01:34]}  f4 {[%clk 0:01:54]} 24. Nd2 {[%clk 0:01:27]}  fxg3 {[%clk 0:01:44]} 25. fxg3 {[%clk 0:01:26]}  Nf5 {[%clk 0:01:44]} 26. Bh3 {[%clk 0:01:14]}  Qg6 {[%clk 0:01:41]} 0-1

[Event "December 19 Early 2023"]
[Site "https://www.chess.com"]
[Date "2023.12.19"]
[Round "7"]
[White "Rozman, Levy"]
[Black "Paravyan, David"]
[Result "0-1"]
[Board "37"]
[TimeControl "180+1"]
[WhiteFideId "2039877"]
[BlackFideId "4194985"]
[WhiteElo "2376"]
[BlackElo "2566"]
[WhiteTeam "USA"]
[BlackTeam "FID"]
[WhiteClock "0:00:05"]
[BlackClock "0:00:44"]

1. d4 {[%clk 0:02:57]}  d5 {[%clk 0:02:59]} 2. Nc3 {[%clk 0:02:54]}  Nf6 {[%clk 0:02:58]} 3. Bf4 {[%clk 0:02:54]}  e6 {[%clk 0:02:55]} 4. Nb5 {[%clk 0:02:50]}  Bb4+ {[%clk 0:02:53]} 5. c3 {[%clk 0:02:49]}  Ba5 {[%clk 0:02:53]} 6. a4 {[%clk 0:02:41]}  a6 {[%clk 0:02:51]} 7. b4 {[%clk 0:02:28]}  Bxb4 {[%clk 0:02:46]} 8. Nxc7+ {[%clk 0:02:28]}  Qxc7 {[%clk 0:02:39]} 9. Bxc7 {[%clk 0:02:15]}  Bxc3+ {[%clk 0:02:39]} 10. Qd2 {[%clk 0:02:16]}  Bxd2+ {[%clk 0:02:36]} 11. Kxd2 {[%clk 0:02:17]}  Nc6 {[%clk 0:02:29]} 12. e3 {[%clk 0:02:09]}  O-O {[%clk 0:02:28]} 13. f3 {[%clk 0:02:01]}  Bd7 {[%clk 0:02:25]} 14. Rb1 {[%clk 0:01:55]}  b5 {[%clk 0:02:06]} 15. Bd3 {[%clk 0:01:39]}  Rfc8 {[%clk 0:02:04]} 16. Bd6 {[%clk 0:01:36]}  Na5 {[%clk 0:02:02]} 17. Ne2 {[%clk 0:01:33]}  bxa4 {[%clk 0:02:00]} 18. e4 {[%clk 0:01:13]}  Bb5 {[%clk 0:01:56]} 19. e5 {[%clk 0:01:08]}  Nd7 {[%clk 0:01:55]} 20. Bxb5 {[%clk 0:00:59]}  axb5 {[%clk 0:01:56]} 21. Rxb5 {[%clk 0:00:59]}  Nc4+ {[%clk 0:01:56]} 22. Kd3 {[%clk 0:00:59]}  Nxd6 {[%clk 0:01:36]} 23. exd6 {[%clk 0:00:58]}  Rc6 {[%clk 0:01:37]} 24. Nc3 {[%clk 0:00:54]}  Rxd6 {[%clk 0:01:34]} 25. Ra1 {[%clk 0:00:40]}  Rda6 {[%clk 0:01:34]} 26. Rb7 {[%clk 0:00:39]}  Nf8 {[%clk 0:01:31]} 27. Ra3 {[%clk 0:00:37]}  g5 {[%clk 0:01:25]} 28. Rb4 {[%clk 0:00:33]}  Ng6 {[%clk 0:01:25]} 29. g3 {[%clk 0:00:33]}  Kg7 {[%clk 0:01:22]} 30. Raxa4 {[%clk 0:00:28]}  Rxa4 {[%clk 0:01:21]} 31. Nxa4 {[%clk 0:00:28]}  h5 {[%clk 0:01:20]} 32. Nc5 {[%clk 0:00:20]}  Ra3+ {[%clk 0:01:18]} 33. Rb3 {[%clk 0:00:18]}  Ra2 {[%clk 0:01:18]} 34. Rb7 {[%clk 0:00:18]}  Nf8 {[%clk 0:01:15]} 35. h4 {[%clk 0:00:16]}  gxh4 {[%clk 0:01:14]} 36. gxh4 {[%clk 0:00:17]}  Rh2 {[%clk 0:01:14]} 37. Ke3 {[%clk 0:00:17]}  Rxh4 {[%clk 0:01:13]} 38. Nd3 {[%clk 0:00:18]}  Ng6 {[%clk 0:01:07]} 39. Nc5 {[%clk 0:00:18]}  e5 {[%clk 0:00:53]} 40. dxe5 {[%clk 0:00:15]}  Nxe5 {[%clk 0:00:53]} 41. Ne6+ {[%clk 0:00:16]}  Kf6 {[%clk 0:00:53]} 42. Nd8 {[%clk 0:00:14]}  d4+ {[%clk 0:00:52]} 43. Kf2 {[%clk 0:00:13]}  d3 {[%clk 0:00:45]} 44. Ke3 {[%clk 0:00:12]}  d2 {[%clk 0:00:44]} 45. Rb6+ {[%clk 0:00:05]}  Ke7 {[%clk 0:00:44]} 0-1

[Event "December 19 Early 2023"]
[Site "https://www.chess.com"]
[Date "2023.12.19"]
[Round "7"]
[White "Sarana, Alexey"]
[Black "Piesik, Piotr"]
[Result "1-0"]
[Board "38"]
[TimeControl "180+1"]
[WhiteFideId "24133795"]
[BlackFideId "1136194"]
[WhiteElo "2707"]
[BlackElo "2319"]
[WhiteTeam "SRB"]
[BlackTeam "CZE"]
[WhiteClock "0:00:49"]
[BlackClock "0:01:27"]

1. d4 {[%clk 0:03:00]}  d5 {[%clk 0:02:58]} 2. c4 {[%clk 0:02:53]}  e6 {[%clk 0:02:57]} 3. Nc3 {[%clk 0:02:52]}  Nf6 {[%clk 0:02:57]} 4. Bg5 {[%clk 0:02:52]}  Be7 {[%clk 0:02:53]} 5. e3 {[%clk 0:02:52]}  O-O {[%clk 0:02:53]} 6. Nf3 {[%clk 0:02:49]}  c6 {[%clk 0:02:50]} 7. Bd3 {[%clk 0:02:43]}  Nbd7 {[%clk 0:02:50]} 8. O-O {[%clk 0:02:43]}  dxc4 {[%clk 0:02:47]} 9. Bxc4 {[%clk 0:02:44]}  Nd5 {[%clk 0:02:47]} 10. Bxe7 {[%clk 0:02:41]}  Qxe7 {[%clk 0:02:48]} 11. Rc1 {[%clk 0:02:39]}  Nxc3 {[%clk 0:02:46]} 12. Rxc3 {[%clk 0:02:36]}  e5 {[%clk 0:02:46]} 13. Bb3 {[%clk 0:02:37]}  e4 {[%clk 0:02:42]} 14. Nd2 {[%clk 0:02:35]}  Nf6 {[%clk 0:02:42]} 15. Rc5 {[%clk 0:02:29]}  Be6 {[%clk 0:02:29]} 16. Re5 {[%clk 0:02:28]}  Bxb3 {[%clk 0:02:29]} 17. Rxe7 {[%clk 0:02:12]}  Bxd1 {[%clk 0:02:27]} 18. Rxd1 {[%clk 0:02:13]}  Rfe8 {[%clk 0:02:22]} 19. Rxb7 {[%clk 0:02:13]}  Reb8 {[%clk 0:02:22]} 20. Rxb8+ {[%clk 0:02:13]}  Rxb8 {[%clk 0:02:23]} 21. b3 {[%clk 0:02:13]}  Kf8 {[%clk 0:02:19]} 22. Rc1 {[%clk 0:02:13]}  Rb6 {[%clk 0:02:19]} 23. Nc4 {[%clk 0:02:07]}  Ra6 {[%clk 0:02:18]} 24. a4 {[%clk 0:02:07]}  Nd7 {[%clk 0:02:14]} 25. Nd6 {[%clk 0:01:53]}  Nf6 {[%clk 0:02:10]} 26. Nc4 {[%clk 0:01:50]}  Nd7 {[%clk 0:02:09]} 27. Kf1 {[%clk 0:01:50]}  Ke7 {[%clk 0:02:09]} 28. Ke2 {[%clk 0:01:48]}  f5 {[%clk 0:02:09]} 29. h3 {[%clk 0:01:47]}  c5 {[%clk 0:02:06]} 30. d5 {[%clk 0:01:37]}  Rg6 {[%clk 0:02:00]} 31. g3 {[%clk 0:01:34]}  Rh6 {[%clk 0:01:57]} 32. h4 {[%clk 0:01:34]}  Rf6 {[%clk 0:01:55]} 33. Rd1 {[%clk 0:01:31]}  h6 {[%clk 0:01:53]} 34. a5 {[%clk 0:01:30]}  g5 {[%clk 0:01:51]} 35. hxg5 {[%clk 0:01:30]}  hxg5 {[%clk 0:01:51]} 36. Rh1 {[%clk 0:01:30]}  f4 {[%clk 0:01:51]} 37. gxf4 {[%clk 0:01:25]}  gxf4 {[%clk 0:01:52]} 38. Rh4 {[%clk 0:01:25]}  Rf5 {[%clk 0:01:44]} 39. d6+ {[%clk 0:01:24]}  Ke6 {[%clk 0:01:44]} 40. exf4 {[%clk 0:01:24]}  Nf6 {[%clk 0:01:43]} 41. a6 {[%clk 0:01:07]}  Nd5 {[%clk 0:01:39]} 42. Rh6+ {[%clk 0:01:05]}  Nf6 {[%clk 0:01:32]} 43. Rg6 {[%clk 0:00:53]}  Kf7 {[%clk 0:01:27]} 44. Ne5+ {[%clk 0:00:50]}  Rxe5 {[%clk 0:01:26]} 45. fxe5 {[%clk 0:00:51]}  Kxg6 {[%clk 0:01:27]} 46. exf6 {[%clk 0:00:51]}  Kxf6 {[%clk 0:01:27]} 47. Ke3 {[%clk 0:00:52]}  Ke6 {[%clk 0:01:28]} 48. Kxe4 {[%clk 0:00:52]}  Kxd6 {[%clk 0:01:27]} 49. f4 {[%clk 0:00:49]} 1-0

[Event "December 19 Early 2023"]
[Site "https://www.chess.com"]
[Date "2023.12.19"]
[Round "7"]
[White "Gubajdullin, Alexei"]
[Black "Muradli, Mahammad"]
[Result "1-0"]
[Board "39"]
[TimeControl "180+1"]
[WhiteFideId "4141202"]
[BlackFideId "13409301"]
[WhiteElo "2274"]
[BlackElo "2551"]
[WhiteTeam "RUS"]
[BlackTeam "AZE"]
[WhiteClock "0:00:25"]
[BlackClock "0:00:00"]

1. e4 {[%clk 0:03:00]}  d6 {[%clk 0:02:53]} 2. d4 {[%clk 0:02:59]}  Nf6 {[%clk 0:02:50]} 3. Nc3 {[%clk 0:02:59]}  g6 {[%clk 0:02:51]} 4. Be3 {[%clk 0:02:59]}  Bg7 {[%clk 0:02:50]} 5. Qd2 {[%clk 0:02:59]}  O-O {[%clk 0:02:50]} 6. Nf3 {[%clk 0:02:57]}  Nc6 {[%clk 0:02:50]} 7. d5 {[%clk 0:02:56]}  Nb8 {[%clk 0:02:50]} 8. Bh6 {[%clk 0:02:55]}  c6 {[%clk 0:02:49]} 9. Bxg7 {[%clk 0:02:53]}  Kxg7 {[%clk 0:02:49]} 10. h4 {[%clk 0:02:53]}  Bg4 {[%clk 0:02:49]} 11. Ng5 {[%clk 0:02:41]}  h6 {[%clk 0:02:41]} 12. Nh3 {[%clk 0:02:40]}  cxd5 {[%clk 0:02:39]} 13. exd5 {[%clk 0:02:39]}  Bxh3 {[%clk 0:02:36]} 14. Rxh3 {[%clk 0:02:33]}  Nbd7 {[%clk 0:02:37]} 15. Be2 {[%clk 0:02:28]}  Rc8 {[%clk 0:02:37]} 16. O-O-O {[%clk 0:02:28]}  Qa5 {[%clk 0:02:36]} 17. Kb1 {[%clk 0:02:26]}  Ne5 {[%clk 0:02:30]} 18. h5 {[%clk 0:02:25]}  g5 {[%clk 0:01:59]} 19. f4 {[%clk 0:02:23]}  gxf4 {[%clk 0:01:49]} 20. Qxf4 {[%clk 0:02:22]}  Rh8 {[%clk 0:01:38]} 21. Rg3+ {[%clk 0:02:17]}  Kf8 {[%clk 0:01:38]} 22. Qf5 {[%clk 0:02:08]}  Rc5 {[%clk 0:01:29]} 23. Rf1 {[%clk 0:01:58]}  Ng8 {[%clk 0:01:28]} 24. Re3 {[%clk 0:01:49]}  Nf6 {[%clk 0:01:14]} 25. Rxe5 {[%clk 0:01:42]}  dxe5 {[%clk 0:01:15]} 26. Qxe5 {[%clk 0:01:43]}  Rxc3 {[%clk 0:00:55]} 27. bxc3 {[%clk 0:01:23]}  Rg8 {[%clk 0:00:49]} 28. Bc4 {[%clk 0:00:52]}  Rg5 {[%clk 0:00:31]} 29. Qb8+ {[%clk 0:00:44]}  Kg7 {[%clk 0:00:31]} 30. d6 {[%clk 0:00:43]}  Qxc3 {[%clk 0:00:15]} 31. Bb3 {[%clk 0:00:35]}  exd6 {[%clk 0:00:06]} 32. Qxd6 {[%clk 0:00:31]}  Qe5 {[%clk 0:00:03]} 33. Qd8 {[%clk 0:00:28]}  b6 {[%clk 0:00:03]} 34. Qb8 {[%clk 0:00:27]}  Qf5 {[%clk 0:00:00]} 35. Rxf5 {[%clk 0:00:25]} 1-0

[Event "December 19 Early 2023"]
[Site "https://www.chess.com"]
[Date "2023.12.19"]
[Round "7"]
[White "Tari, Aryan"]
[Black "Fromm, Marius"]
[Result "1-0"]
[Board "41"]
[TimeControl "180+1"]
[WhiteFideId "1510045"]
[BlackFideId "12993190"]
[WhiteElo "2577"]
[BlackElo "2335"]
[WhiteTeam "NOR"]
[BlackTeam "GER"]
[WhiteClock "0:00:02"]
[BlackClock "0:00:00"]

1. e4 {[%clk 0:03:00]}  c5 {[%clk 0:02:59]} 2. Nf3 {[%clk 0:02:58]}  e6 {[%clk 0:02:59]} 3. c3 {[%clk 0:02:55]}  d5 {[%clk 0:02:59]} 4. exd5 {[%clk 0:02:52]}  Qxd5 {[%clk 0:03:00]} 5. d4 {[%clk 0:02:51]}  Nf6 {[%clk 0:03:00]} 6. Na3 {[%clk 0:02:49]}  Nc6 {[%clk 0:03:00]} 7. Be3 {[%clk 0:02:45]}  cxd4 {[%clk 0:02:59]} 8. Nb5 {[%clk 0:02:44]}  Qd7 {[%clk 0:02:59]} 9. Nbxd4 {[%clk 0:02:43]}  Nd5 {[%clk 0:02:57]} 10. Bd2 {[%clk 0:02:26]}  Bd6 {[%clk 0:02:47]} 11. Nxc6 {[%clk 0:02:17]}  bxc6 {[%clk 0:02:48]} 12. c4 {[%clk 0:02:15]}  Ne7 {[%clk 0:02:38]} 13. Qc2 {[%clk 0:02:10]}  c5 {[%clk 0:02:19]} 14. Bd3 {[%clk 0:01:57]}  Ng6 {[%clk 0:02:10]} 15. Be4 {[%clk 0:01:52]}  Bb7 {[%clk 0:02:05]} 16. O-O-O {[%clk 0:01:47]}  O-O {[%clk 0:01:51]} 17. Bc3 {[%clk 0:01:38]}  Bxe4 {[%clk 0:01:40]} 18. Qxe4 {[%clk 0:01:38]}  Qe7 {[%clk 0:01:17]} 19. h4 {[%clk 0:01:35]}  f5 {[%clk 0:01:13]} 20. Qc2 {[%clk 0:01:28]}  e5 {[%clk 0:01:03]} 21. h5 {[%clk 0:01:26]}  Nf4 {[%clk 0:01:03]} 22. g3 {[%clk 0:01:14]}  e4 {[%clk 0:00:50]} 23. gxf4 {[%clk 0:01:14]}  exf3 {[%clk 0:00:50]} 24. Qd2 {[%clk 0:01:06]}  Rad8 {[%clk 0:00:44]} 25. Qd5+ {[%clk 0:00:51]}  Qf7 {[%clk 0:00:28]} 26. Qxf3 {[%clk 0:00:39]}  Qxc4 {[%clk 0:00:25]} 27. Rhg1 {[%clk 0:00:21]}  Qxf4+ {[%clk 0:00:11]} 28. Qxf4 {[%clk 0:00:21]}  Bxf4+ {[%clk 0:00:11]} 29. Kc2 {[%clk 0:00:22]}  Bh6 {[%clk 0:00:07]} 30. Rxd8 {[%clk 0:00:22]}  Rxd8 {[%clk 0:00:08]} 31. Re1 {[%clk 0:00:22]}  Kf7 {[%clk 0:00:08]} 32. Re5 {[%clk 0:00:22]}  g6 {[%clk 0:00:07]} 33. Rxc5 {[%clk 0:00:22]}  Rd7 {[%clk 0:00:05]} 34. Rc6 {[%clk 0:00:20]}  Bg7 {[%clk 0:00:05]} 35. hxg6+ {[%clk 0:00:20]}  hxg6 {[%clk 0:00:05]} 36. a4 {[%clk 0:00:19]}  g5 {[%clk 0:00:04]} 37. a5 {[%clk 0:00:18]}  g4 {[%clk 0:00:03]} 38. a6 {[%clk 0:00:16]}  Bxc3 {[%clk 0:00:03]} 39. Kxc3 {[%clk 0:00:10]}  Kg7 {[%clk 0:00:01]} 40. b4 {[%clk 0:00:06]}  f4 {[%clk 0:00:01]} 41. Rc5 {[%clk 0:00:05]}  Kf6 {[%clk 0:00:01]} 42. Rc8 {[%clk 0:00:03]}  Kf5 {[%clk 0:00:01]} 43. Rf8+ {[%clk 0:00:03]}  Ke4 {[%clk 0:00:01]} 44. b5 {[%clk 0:00:04]}  Kf3 {[%clk 0:00:02]} 45. Kc4 {[%clk 0:00:03]}  Kxf2 {[%clk 0:00:01]} 46. Rxf4+ {[%clk 0:00:03]}  Kg3 {[%clk 0:00:02]} 47. Rd4 {[%clk 0:00:03]}  Rf7 {[%clk 0:00:01]} 48. Kd5 {[%clk 0:00:02]}  Kh3 {[%clk 0:00:00]} 49. Ke6 {[%clk 0:00:02]} 1-0

[Event "December 19 Early 2023"]
[Site "https://www.chess.com"]
[Date "2023.12.19"]
[Round "7"]
[White "Harutjunyan, Gevorg"]
[Black "Karttunen, Mika"]
[Result "1/2-1/2"]
[Board "43"]
[TimeControl "180+1"]
[WhiteFideId "13300873"]
[BlackFideId "502081"]
[WhiteElo "2436"]
[BlackElo "2396"]
[WhiteTeam "ARM"]
[BlackTeam "FIN"]
[WhiteClock "0:00:08"]
[BlackClock "0:00:04"]

1. e4 {[%clk 0:02:53]}  c5 {[%clk 0:02:58]} 2. Nf3 {[%clk 0:02:53]}  d6 {[%clk 0:02:59]} 3. d4 {[%clk 0:02:53]}  cxd4 {[%clk 0:02:59]} 4. Nxd4 {[%clk 0:02:53]}  Nf6 {[%clk 0:03:00]} 5. Nc3 {[%clk 0:02:54]}  a6 {[%clk 0:03:00]} 6. f4 {[%clk 0:02:54]}  e5 {[%clk 0:02:59]} 7. Nf3 {[%clk 0:02:54]}  Nbd7 {[%clk 0:02:59]} 8. a4 {[%clk 0:02:54]}  exf4 {[%clk 0:02:48]} 9. Bxf4 {[%clk 0:02:54]}  Be7 {[%clk 0:02:48]} 10. Bxd6 {[%clk 0:02:35]}  O-O {[%clk 0:02:45]} 11. Be2 {[%clk 0:02:32]}  Re8 {[%clk 0:02:41]} 12. Bxe7 {[%clk 0:02:01]}  Rxe7 {[%clk 0:02:31]} 13. O-O {[%clk 0:02:01]}  Qb6+ {[%clk 0:02:30]} 14. Qd4 {[%clk 0:01:57]}  Nxe4 {[%clk 0:02:14]} 15. Nd5 {[%clk 0:01:54]}  Qxd4+ {[%clk 0:02:08]} 16. Nxd4 {[%clk 0:01:55]}  Re5 {[%clk 0:02:08]} 17. Bc4 {[%clk 0:01:06]}  Nd6 {[%clk 0:01:25]} 18. Ba2 {[%clk 0:00:58]}  Nf8 {[%clk 0:01:16]} 19. Rae1 {[%clk 0:00:54]}  Rxe1 {[%clk 0:01:05]} 20. Rxe1 {[%clk 0:00:55]}  Bd7 {[%clk 0:01:03]} 21. Nb6 {[%clk 0:00:44]}  Rd8 {[%clk 0:01:03]} 22. Re7 {[%clk 0:00:42]}  g6 {[%clk 0:00:54]} 23. Bd5 {[%clk 0:00:32]}  Kg7 {[%clk 0:00:50]} 24. Nxd7 {[%clk 0:00:32]}  Rxd7 {[%clk 0:00:50]} 25. Rxd7 {[%clk 0:00:26]}  Nxd7 {[%clk 0:00:50]} 26. b4 {[%clk 0:00:26]}  b6 {[%clk 0:00:36]} 27. Kf2 {[%clk 0:00:23]}  a5 {[%clk 0:00:33]} 28. bxa5 {[%clk 0:00:21]}  bxa5 {[%clk 0:00:33]} 29. Nc6 {[%clk 0:00:20]}  Nb6 {[%clk 0:00:29]} 30. Bb3 {[%clk 0:00:20]}  Nb7 {[%clk 0:00:29]} 31. Ke3 {[%clk 0:00:18]}  f5 {[%clk 0:00:26]} 32. Kd4 {[%clk 0:00:18]}  Kf6 {[%clk 0:00:24]} 33. c4 {[%clk 0:00:11]}  Nd7 {[%clk 0:00:22]} 34. Bc2 {[%clk 0:00:07]}  g5 {[%clk 0:00:20]} 35. Kd5 {[%clk 0:00:07]}  h5 {[%clk 0:00:18]} 36. Nd4 {[%clk 0:00:04]}  f4 {[%clk 0:00:13]} 37. Kc6 {[%clk 0:00:05]}  Nbc5 {[%clk 0:00:11]} 38. Nb3 {[%clk 0:00:04]}  Nxb3 {[%clk 0:00:06]} 39. Bxb3 {[%clk 0:00:05]}  Ne5+ {[%clk 0:00:06]} 40. Kd6 {[%clk 0:00:05]}  g4 {[%clk 0:00:06]} 41. c5 {[%clk 0:00:06]}  f3 {[%clk 0:00:06]} 42. gxf3 {[%clk 0:00:07]}  gxf3 {[%clk 0:00:07]} 43. Bd5 {[%clk 0:00:06]}  f2 {[%clk 0:00:07]} 44. Bg2 {[%clk 0:00:07]}  Nc4+ {[%clk 0:00:07]} 45. Kd7 {[%clk 0:00:04]}  Ne3 {[%clk 0:00:08]} 46. Bh3 {[%clk 0:00:04]}  Kg5 {[%clk 0:00:08]} 47. c6 {[%clk 0:00:05]}  Kh4 {[%clk 0:00:09]} 48. Bf1 {[%clk 0:00:02]}  Nxf1 {[%clk 0:00:08]} 49. c7 {[%clk 0:00:03]}  Nxh2 {[%clk 0:00:09]} 50. c8=Q {[%clk 0:00:04]}  f1=Q {[%clk 0:00:09]} 51. Qd8+ {[%clk 0:00:04]}  Kg3 {[%clk 0:00:10]} 52. Qxa5 {[%clk 0:00:05]}  Qf7+ {[%clk 0:00:09]} 53. Kc6 {[%clk 0:00:05]}  Ng4 {[%clk 0:00:09]} 54. Qc3+ {[%clk 0:00:02]}  Kf4 {[%clk 0:00:08]} 55. a5 {[%clk 0:00:03]}  Ne5+ {[%clk 0:00:08]} 56. Kb5 {[%clk 0:00:02]}  Qb7+ {[%clk 0:00:08]} 57. Ka4 {[%clk 0:00:02]}  Qc6+ {[%clk 0:00:09]} 58. Qxc6 {[%clk 0:00:03]}  Nxc6 {[%clk 0:00:10]} 59. a6 {[%clk 0:00:04]}  h4 {[%clk 0:00:09]} 60. Kb5 {[%clk 0:00:05]}  h3 {[%clk 0:00:09]} 61. Kxc6 {[%clk 0:00:05]}  h2 {[%clk 0:00:09]} 62. Kb7 {[%clk 0:00:04]}  h1=Q+ {[%clk 0:00:10]} 63. Kb8 {[%clk 0:00:05]}  Qb1+ {[%clk 0:00:09]} 64. Ka8 {[%clk 0:00:06]}  Qe4+ {[%clk 0:00:07]} 65. Kb8 {[%clk 0:00:06]}  Qb4+ {[%clk 0:00:07]} 66. Kc7 {[%clk 0:00:07]}  Qc5+ {[%clk 0:00:07]} 67. Kb7 {[%clk 0:00:07]}  Qa5 {[%clk 0:00:07]} 68. a7 {[%clk 0:00:07]}  Qb5+ {[%clk 0:00:06]} 69. Ka8 {[%clk 0:00:08]}  Qb6 {[%clk 0:00:04]} 1/2-1/2